bitfinex-derivatives/quotes_ETHF0:USTF0_20260208
["timestamp","ask_amount","ask_price","bid_price","bid_amount"]
[1770550786748,11.65452097,2128.9,2127.8,4.36586112]
[1770550786940,11.65452097,2128.9,2127.8,7.08150309]
[1770550787144,11.65452097,2128.9,2127.9,6.13275794]
[1770550787345,11.65452097,2128.9,2127.8,0.23518]
[1770550788051,11.65452097,2128.9,2127.9,6.07129299]
[1770550788447,11.65452097,2128.9,2127.9,6.30646299]
[1770550790052,11.65452097,2128.9,2127.2,2.9509279]
[1770550790451,11.65452097,2128.9,2127.5,6.22647679]
[1770550790654,11.65452097,2128.9,2127.4,0.23523]
[1770550790950,11.65452097,2128.9,2127.6,6.22647679]
[1770550791155,11.65452097,2128.9,2127.6,2.7156879]
[1770550791357,11.65452097,2128.9,2127.5,2.7156879]
[1770550791555,11.65452097,2128.9,2127.7,6.07713082]
[1770550791742,11.65452097,2128.9,2127.6,6.07713082]
[1770550791944,11.65452097,2128.9,2127.8,6.07713082]
[1770550792353,11.65452097,2128.9,2127.7,8.79281872]
[1770550792652,11.65452097,2128.9,2127.9,6.19218554]
[1770550792851,11.65452097,2128.9,2127.8,6.19218554]
[1770550793052,11.65452097,2128.9,2127.7,2.7156879]
[1770550793442,11.65452097,2128.9,2127.8,6.23354806]
[1770550793850,11.65452097,2128.9,2127.8,9.18441596]
[1770550794158,11.65452097,2128.9,2127.9,4.14068243]
[1770550794352,11.65452097,2128.9,2127.8,2.9508679]
[1770550794554,11.65452097,2128.9,2127.9,5.96795779]
[1770550796859,0.23508,2128.8,2127.3,2.7156879]
[1770550797053,11.65452097,2128.7,2127.2,2.7156879]
[1770550797256,11.65452097,2128.7,2127.3,13.01746665]
[1770550797559,11.65452097,2128.7,2127.3,8.86049253]
[1770550797960,11.65452097,2128.6,2127.2,2.9509379]
[1770550798560,11.65452097,2128.4,2126.8,2.7156879]
[1770550799666,11.65452097,2128.4,2126.8,6.87359741]
[1770550799867,11.65452097,2128.4,2126.8,2.7156879]
[1770550800066,11.65452097,2128.4,2126.7,2.7156879]
[1770550800269,11.65452097,2128.4,2126.6,4.28857685]
[1770550800270,11.65452097,2128.4,2126.8,6.87427033]
[1770550800568,11.65452097,2128.4,2126.8,2.7156879]
[1770550800860,11.65452097,2128.2,2126.8,6.87337118]
[1770550801062,10.93409997,2127.8,2126.1,0.23537]
[1770550801362,10.93409997,2127.6,2126.2,6.09566598]
[1770550801566,10.93409997,2127.6,2126.2,12.68723621]
[1770550801868,10.93409997,2127.6,2126.3,6.59157023]
[1770550802168,10.93828375,2127.6,2126.3,0.00437753]
[1770550803060,11.17349375,2127.6,2126.3,0.00437753]
[1770550803256,10.79725375,2127.6,2126.3,0.00437753]
[1770550809676,10.79725375,2127.6,2125.6,0.30597998]
[1770550809677,11.40536081,2127.2,2125.6,0.30597998]
[1770550809970,11.40536081,2127.2,2125.6,7.06546205]
[1770550810170,11.40536081,2127.0,2125.4,7.06546205]
[1770550810770,11.40536081,2127.0,2125.4,7.0693744]
[1770550810970,42.10447713,2127.5,2125.4,0.00391235]
[1770550810971,11.40536081,2126.8,2125.4,0.00391235]
[1770550811170,11.40536081,2126.6,2125.4,0.00391235]
[1770550811980,11.40536081,2126.6,2125.4,7.05040013]
[1770550814173,11.40536081,2126.6,2125.4,0.00391235]
[1770550816380,11.40536081,2126.6,2125.4,7.43334096]
[1770550817886,11.40536081,2126.6,2125.4,0.00391235]
[1770550818990,30.6473,2126.8,2124.7,0.30354015]
[1770550818991,11.28867494,2126.2,2124.7,0.30354015]
[1770550819289,11.28867494,2126.2,2124.7,7.83942778]
[1770550819485,11.28867494,2126.2,2124.7,7.53588763]
[1770550819977,11.28867494,2126.2,2124.7,7.54074668]
[1770550820481,11.52404494,2126.2,2124.7,7.54074668]
[1770550820779,11.28867494,2126.0,2124.7,7.54074668]
[1770550820983,11.29459858,2126.0,2124.7,7.54074668]
[1770550821183,11.29459858,2126.0,2124.9,7.50428931]
[1770550821383,11.29459858,2126.0,2124.8,6.0030352]
[1770550821584,11.29459858,2126.0,2124.8,7.50428931]
[1770550821987,11.29459858,2126.0,2124.7,7.74466836]
[1770550823286,11.29459858,2126.0,2124.9,7.49401138]
[1770550824091,11.29459858,2126.0,2124.7,7.73439043]
[1770550824490,11.29459858,2126.0,2124.8,6.05624871]
[1770550824789,11.29459858,2126.0,2124.9,7.49401138]
[1770550825183,11.29459858,2126.0,2124.7,7.7837529]
[1770550825588,11.29459858,2126.0,2124.9,5.97727395]
[1770550825789,11.29459858,2126.0,2124.8,13.5206478]
[1770550825989,11.29459858,2126.0,2124.8,7.54337385]
[1770550826186,11.29459858,2126.0,2124.9,5.97727395]
[1770550826490,11.29459858,2126.0,2124.7,7.7837529]
[1770550827190,11.29459858,2126.0,2124.7,7.5482329]
[1770550827392,11.29459858,2126.0,2124.7,0.00485905]
[1770550827988,11.52408494,2125.8,2124.2,7.54635056]
[1770550828386,11.52408494,2125.8,2124.3,7.55120961]
[1770550828592,11.52408494,2125.8,2124.6,7.55120961]
[1770550828593,11.28867494,2125.8,2124.6,7.55120961]
[1770550828986,11.28867494,2125.8,2124.8,7.55120961]
[1770550833290,11.29459858,2126.0,2125.2,7.60046358]
[1770550833600,11.29459858,2126.0,2125.0,7.60046358]
[1770550834295,11.29459858,2126.0,2124.8,7.60046358]
[1770550834795,11.29459858,2126.0,2124.8,13.66613936]
[1770550834991,11.29459858,2126.0,2124.8,7.60046358]
[1770550836588,11.29459858,2126.0,2124.5,0.00389851]
[1770550836589,11.29459858,2126.0,2124.6,7.56531803]
[1770550837197,11.52998858,2126.0,2124.5,7.66478597]
[1770550838289,11.52998858,2126.0,2124.5,7.90033597]
[1770550838692,11.29459858,2126.0,2124.7,7.66088746]
[1770550838887,11.29459858,2126.0,2124.9,7.66088746]
[1770550839295,11.29459858,2126.0,2125.1,7.65916634]
[1770550840591,11.29459858,2126.0,2125.1,7.89464634]
[1770550841898,11.29459858,2126.0,2125.2,6.24956191]
[1770550842101,11.29459858,2126.0,2125.3,7.65291538]
[1770550843502,11.29459858,2126.0,2125.1,7.98822338]
[1770550845501,11.29459858,2126.0,2125.3,7.71160624]
[1770550848299,11.28445154,2126.0,2125.5,7.6520152]
[1770550848896,11.25806847,2126.6,2125.7,7.6562386]
[1770550849299,11.26399326,2126.6,2125.7,7.6562386]
[1770550850302,11.26399326,2126.6,2125.9,7.65312961]
[1770550851096,11.26399326,2126.6,2125.7,7.78702324]
[1770550852096,11.26399326,2126.6,2125.3,4.09419442]
[1770550852097,11.49931326,2126.6,2125.3,4.09419442]
[1770550852300,11.49931326,2126.6,2125.2,5.45892589]
[1770550852301,11.49931326,2126.6,2125.1,7.78708324]
[1770550853803,11.49931326,2126.6,2125.3,7.59314016]
[1770550854809,11.49931326,2126.6,2125.0,4.09419442]
[1770550854810,11.26399326,2126.6,2125.5,7.59314016]
[1770550855302,11.26399326,2126.6,2125.7,7.79573486]
[1770550857308,11.26399326,2126.6,2125.9,7.33913616]
[1770550858703,11.26399326,2126.6,2125.8,0.2354]
[1770550859004,11.26399326,2126.6,2125.8,7.57453616]
[1770550860407,11.26399326,2126.6,2125.4,7.36289297]
[1770550862508,11.26399326,2126.6,2125.6,7.43609606]
[1770550865005,11.26399326,2126.6,2125.5,2.96743008]
[1770550865310,11.26399326,2126.6,2125.5,0.23543]
[1770550866502,11.26399326,2126.6,2125.5,7.7061249]
[1770550868209,11.26399326,2126.6,2125.6,7.43031738]
[1770550868915,11.26399326,2126.6,2125.5,2.96743008]
[1770550869210,11.26399326,2126.6,2125.5,0.23543]
[1770550869406,11.26399326,2126.6,2125.4,10.16231746]
[1770550869603,11.26399326,2126.6,2125.7,7.37364886]
[1770550870010,11.39202489,2127.0,2125.9,7.37364886]
[1770550870209,11.39202489,2127.0,2126.1,10.10564894]
[1770550870509,11.39202489,2127.0,2126.3,7.37364886]
[1770550870705,11.39202489,2127.0,2126.2,6.09264358]
[1770550870903,11.39202489,2127.6,2126.5,9.27649159]
[1770550871099,11.39615333,2127.6,2126.5,9.28154559]
[1770550871508,11.39615333,2127.6,2126.7,9.24397167]
[1770550871907,11.39615333,2127.6,2126.5,12.21635575]
[1770550872104,11.39202489,2128.1,2126.6,9.24397167]
[1770550872310,11.39202489,2128.1,2127.0,9.24397167]
[1770550872812,11.39202489,2128.1,2126.9,2.73200008]
[1770550873014,11.39202489,2128.1,2126.8,9.24397167]
[1770550873209,11.39748506,2128.1,2126.8,9.24397167]
[1770550873411,11.39748506,2128.1,2126.9,9.35445639]
[1770550873611,11.39748506,2128.1,2126.8,6.00514331]
[1770550873813,11.39748506,2128.1,2127.0,6.14755026]
[1770550874014,11.39748506,2128.1,2127.0,15.48192094]
[1770550874217,11.39748506,2128.1,2127.0,9.33437068]
[1770550875620,11.577481,2128.1,2127.2,9.37024923]
[1770550876019,11.577481,2128.1,2127.4,9.37024923]
[1770550876312,11.577481,2128.1,2127.3,9.37024923]
[1770550876705,11.577481,2128.1,2127.1,9.60550923]
[1770550877106,11.577481,2128.1,2127.3,6.16163021]
[1770550877314,11.577481,2128.1,2127.4,9.21211461]
[1770550878618,0.00546017,2128.1,2127.4,9.21211461]
[1770550878819,0.00546017,2128.1,2127.6,9.21211461]
[1770550879014,11.577481,2128.1,2127.6,9.21211461]
[1770550879615,0.00546017,2128.1,2127.4,9.25822226]
[1770550879918,0.00546017,2128.1,2127.5,6.13649221]
[1770550880116,11.577481,2128.1,2127.6,9.25822226]
[1770550880721,11.57202083,2128.3,2127.7,6.18521715]
[1770550880923,11.57202083,2128.3,2127.6,9.25822226]
[1770550881716,11.57564497,2128.3,2127.6,9.25822226]
[1770550885916,11.57564497,2128.3,2127.4,9.70344432]
[1770550886122,11.57564497,2128.3,2127.2,9.46821432]
[1770550887022,11.57564497,2128.3,2126.9,9.70349432]
[1770550887221,11.81077497,2128.3,2126.9,9.46821432]
[1770550888420,11.81077497,2128.3,2127.0,6.04559126]
[1770550888619,11.81077497,2128.3,2127.1,9.37279816]
[1770550889326,11.81077497,2128.3,2126.9,9.38661634]
[1770550892625,11.57202083,2128.0,2126.5,9.38219893]
[1770550892814,11.57202083,2127.8,2126.5,9.38219893]
[1770550893519,11.57202083,2127.8,2126.5,9.92830959]
[1770550893719,11.57202083,2127.8,2126.6,6.1481744]
[1770550894027,11.57202083,2127.8,2126.7,9.31658143]
[1770550895521,11.57202083,2127.8,2126.5,9.69420525]
[1770550896725,11.57202083,2127.8,2126.8,9.35026373]
[1770550896929,10.73630708,2128.2,2127.1,9.11497373]
[1770550901133,10.97152708,2127.5,2125.9,0.23539]
[1770550901336,10.73630708,2127.2,2125.7,10.35197067]
[1770550901537,10.73630708,2127.2,2125.8,14.16453177]
[1770550901731,10.97156708,2127.2,2125.8,10.04236381]
[1770550901932,10.73630708,2127.1,2125.8,10.04236381]
[1770550902430,10.73630708,2127.1,2125.8,0.00332779]
[1770550903330,10.73630708,2127.1,2125.8,10.00632636]
[1770550913744,10.73630708,2127.1,2126.0,9.97081765]
[1770550916158,10.73630708,2127.1,2125.8,0.00332779]
[1770550916458,10.73630708,2127.1,2125.8,9.98803805]
[1770550923268,10.73630708,2127.2,2126.1,10.04121682]
[1770550926062,11.20457807,2127.4,2126.1,10.27658682]
[1770550926262,11.20457807,2127.4,2126.4,0.23533]
[1770550926465,30.414,2127.6,2126.8,10.30002545]
[1770550926860,11.20457807,2127.9,2126.9,6.00594021]
[1770550927061,11.20457807,2127.9,2127.0,10.30002545]
[1770550927662,11.20457807,2128.2,2127.2,10.20744731]
[1770550928064,11.20457807,2128.2,2127.4,10.20744731]
[1770550928265,11.20457807,2128.2,2127.4,10.213062]
[1770550928665,0.00362414,2128.3,2127.4,10.213062]
[1770550928859,11.20457807,2128.6,2127.6,10.20744731]
[1770550929269,11.20457807,2129.0,2127.8,9.97753453]
[1770550929968,11.20893142,2129.0,2127.9,5.99581648]
[1770550930171,11.20893142,2129.0,2128.0,9.97753453]
[1770550932870,11.20893142,2129.0,2128.2,10.09663369]
[1770550934976,11.20893142,2129.0,2127.9,0.23517]
[1770550934977,11.20893142,2129.0,2128.0,10.14306251]
[1770550935375,11.20893142,2129.0,2128.1,10.14097859]
[1770550937472,0.00435335,2129.0,2128.1,10.14097859]
[1770550937877,11.58190481,2129.0,2128.1,10.14097859]
[1770550938078,11.58190481,2129.0,2127.5,10.09035741]
[1770550938583,11.58190481,2129.0,2127.6,10.09035741]
[1770550939778,0.00435335,2129.0,2127.6,10.09035741]
[1770550939980,11.57755146,2129.5,2128.4,10.17383797]
[1770550940979,11.58264894,2129.5,2128.4,10.17383797]
[1770550941883,11.58264894,2129.5,2128.4,10.40895797]
[1770550942182,11.58264894,2129.5,2128.6,9.87499123]
[1770550942882,0.00509748,2129.5,2128.8,9.87499123]
[1770550944280,11.58264894,2129.5,2128.8,9.87499123]
[1770550945585,11.57755146,2130.3,2129.0,9.73667584]
[1770550945889,11.57755146,2130.3,2129.1,6.24575236]
[1770550946084,11.57755146,2130.3,2129.2,9.73667584]
[1770550946591,11.33170575,2130.3,2129.4,9.73667584]
[1770550947686,11.33170575,2130.3,2129.2,10.01291811]
[1770550947887,11.33170575,2130.3,2129.2,0.00396957]
[1770550949288,11.57755146,2130.1,2128.7,9.97404027]
[1770550950392,11.57755146,2130.1,2128.7,0.00502611]
[1770550950590,11.57755146,2130.1,2128.7,9.98303595]
[1770550953783,11.57755146,2130.1,2128.7,0.00502611]
[1770550953988,11.57755146,2130.1,2128.7,9.94658758]
[1770550954190,11.81248146,2130.1,2128.7,0.00502611]
[1770550954497,11.57755146,2129.9,2128.7,0.00502611]
[1770550954691,11.81254146,2129.7,2128.7,0.00502611]
[1770550954883,11.81255146,2129.5,2128.0,9.94658758]
[1770550955087,11.81255146,2129.5,2128.0,10.24872823]
[1770550955288,11.81255146,2129.5,2128.0,9.94658758]
[1770550955782,11.81255146,2129.5,2128.0,9.95099107]
[1770550955987,11.81255146,2129.5,2128.0,10.25714571]
[1770550958794,11.81255146,2129.5,2128.0,9.95099107]
[1770550959995,10.57849872,2129.3,2128.1,9.00288098]
[1770550961093,10.57849872,2129.3,2128.2,9.00288098]
[1770550962296,10.57849872,2129.3,2128.3,9.06609779]
[1770550962593,10.57849872,2129.3,2128.4,9.06609779]
[1770550968201,10.57849872,2129.3,2128.2,11.94466501]
[1770550968398,10.57849872,2129.3,2128.2,16.03885943]
[1770550968598,10.57849872,2129.3,2128.2,11.94466501]
[1770550969302,10.57849872,2129.3,2128.2,16.03885943]
[1770550969803,10.57849872,2129.3,2128.2,11.94466501]
[1770550970101,10.57849872,2129.3,2128.2,2.95211048]
[1770550970300,10.57849872,2129.3,2128.2,0.23514]
[1770550971600,10.57849872,2129.3,2128.2,9.27395749]
[1770550979418,10.57849872,2129.3,2128.2,9.04816129]
[1770550981623,10.57849872,2129.3,2128.3,8.75156603]
[1770550983420,10.57849872,2129.2,2128.2,2.71697048]
[1770550983621,10.57849872,2129.1,2128.0,2.72137397]
[1770550983821,10.57849872,2129.0,2128.0,8.80884036]
[1770550984425,52.73141859,2129.0,2128.0,8.80884036]
[1770550984625,10.57849872,2128.9,2128.0,0.00440349]
[1770550984925,10.57849872,2128.8,2128.0,0.00440349]
[1770550985230,10.58425337,2128.8,2128.0,0.00440349]
[1770550986325,10.58425337,2128.8,2128.0,8.74720554]
[1770550988223,10.58425337,2128.8,2128.0,0.00440349]
[1770550988424,10.58425337,2128.8,2128.0,8.74532251]
[1770550989628,0.00575465,2128.8,2128.0,11.46229299]
[1770550989826,0.00575465,2128.8,2128.1,11.33864222]
[1770550990023,0.00575465,2128.8,2128.2,8.62167174]
[1770550990225,11.4384525,2128.8,2128.2,8.62167174]
[1770550994931,0.00575465,2128.8,2128.2,8.62167174]
[1770550995931,0.00575465,2128.8,2128.2,11.33864222]
[1770550996133,0.00575465,2128.8,2128.3,15.40477011]
[1770550996337,11.33921521,2129.0,2128.4,8.58504619]
[1770550997231,0.00352566,2129.0,2128.4,8.58504619]
[1770551000536,0.00352566,2129.0,2128.4,11.30201667]
[1770551000744,0.00352566,2129.0,2128.5,8.77166578]
[1770551000942,11.34274087,2129.0,2126.7,16.55624658]
[1770551001138,0.06016146,2126.5,2125.4,23.69407727]
[1770551001338,0.06016146,2126.5,2125.8,11.46223243]
[1770551001544,7.09956021,2126.0,2125.3,11.54534638]
[1770551001735,5.6101442,2125.5,2125.2,11.46223243]
[1770551001934,6.55967134,2125.4,2125.3,11.46223243]
[1770551002133,6.55967134,2125.4,2124.3,23.69407727]
[1770551002134,3.22467562,2125.3,2124.5,11.54534638]
[1770551002442,41.9158533,2124.7,2124.3,11.54534638]
[1770551002637,3.21957203,2124.9,2124.3,11.54534638]
[1770551002838,8.48346956,2124.8,2124.3,35.23942365]
[1770551003038,5.68881902,2124.7,2124.3,35.23942365]
[1770551003237,3.35789685,2124.8,2124.3,35.24272874]
[1770551003442,2.79465054,2125.0,2124.3,0.00330509]
[1770551003443,9.02499482,2124.7,2124.3,0.00330509]
[1770551003641,3.35789685,2124.7,2124.3,0.00330509]
[1770551005147,3.60319719,2125.0,2124.3,23.69738236]
[1770551005343,5.60351767,2124.9,2124.3,23.69738236]
[1770551005534,3.60319719,2124.9,2124.3,23.69738236]
[1770551007042,2.79465054,2125.2,2124.4,11.54534638]
[1770551007245,5.84270233,2125.1,2124.6,11.54534638]
[1770551007444,3.47519452,2125.3,2124.6,11.54534638]
[1770551007649,3.47519452,2125.1,2124.7,23.69407727]
[1770551008344,0.00522758,2125.5,2124.8,11.54534638]
[1770551008545,3.4804221,2125.5,2124.8,11.54534638]
[1770551008745,3.4804221,2125.5,2124.9,23.69407727]
[1770551009145,3.4804221,2125.5,2124.9,35.23942365]
[1770551009349,0.00522758,2125.5,2124.9,35.23942365]
[1770551010151,3.50705401,2125.5,2124.9,35.23942365]
[1770551011352,0.00522758,2125.5,2125.0,11.54534638]
[1770551011546,3.61776266,2125.5,2125.0,11.54534638]
[1770551011739,3.61776266,2125.5,2124.9,23.69407727]
[1770551011740,33.99453508,2125.8,2125.2,11.54534638]
[1770551011943,9.40690325,2125.7,2125.2,11.54534638]
[1770551012147,9.40690325,2125.6,2124.5,11.54534638]
[1770551012355,3.61253508,2125.6,2124.5,11.54534638]
[1770551012852,3.61622632,2125.6,2124.5,11.54534638]
[1770551014244,3.61622632,2125.6,2124.4,23.69407727]
[1770551014245,0.00369124,2125.6,2124.7,11.54534638]
[1770551014549,3.59530101,2125.6,2124.7,11.54534638]
[1770551014947,0.00369124,2125.6,2124.7,11.54534638]
[1770551015851,0.00369124,2125.6,2124.9,11.14487602]
[1770551016352,0.00369124,2125.6,2125.1,11.14487602]
[1770551016854,0.00369124,2125.6,2125.2,34.83895329]
[1770551017051,0.00369124,2125.6,2125.2,11.14487602]
[1770551017249,0.00369124,2125.6,2125.2,34.83895329]
[1770551019058,3.59160977,2125.8,2125.3,11.14487602]
[1770551019356,9.29447091,2125.7,2125.3,11.14487602]
[1770551019558,5.70583641,2125.6,2125.3,11.14487602]
[1770551019856,6.38328504,2125.9,2125.3,34.83895329]
[1770551020054,0.38115542,2125.9,2125.4,11.14487602]
[1770551020251,9.58039127,2126.3,2125.5,11.14487602]
[1770551020951,9.58039127,2126.3,2125.4,23.69407727]
[1770551021155,9.586013,2126.3,2125.2,11.14487602]
[1770551021356,9.586013,2126.3,2125.3,34.83895329]
[1770551021653,9.586013,2126.3,2125.3,11.14487602]
[1770551023456,9.586013,2126.3,2124.8,0.23552]
[1770551023457,9.586013,2126.3,2125.4,34.83895329]
[1770551023658,9.586013,2126.3,2125.4,11.14487602]
[1770551025758,9.586013,2126.3,2125.5,34.83895329]
[1770551025956,9.586013,2126.3,2125.5,11.14487602]
[1770551026157,9.58353238,2126.2,2125.6,23.69407727]
[1770551026859,9.58353238,2126.2,2125.3,11.14487602]
[1770551027061,9.58353238,2126.2,2125.0,11.14487602]
[1770551027257,5.58878044,2126.1,2125.0,11.14487602]
[1770551027564,5.58878044,2126.1,2125.1,34.83895329]
[1770551027565,9.58787563,2126.0,2125.1,34.83895329]
[1770551027764,9.58787563,2126.0,2125.1,11.14487602]
[1770551028261,9.58787563,2125.9,2125.1,11.14487602]
[1770551029369,15.12410597,2125.8,2125.1,11.14487602]
[1770551029567,9.53532553,2125.7,2125.2,34.83895329]
[1770551029768,9.53532553,2125.7,2125.3,11.14487602]
[1770551029961,9.53532553,2125.7,2125.3,7.61347027]
[1770551030267,5.62010694,2125.5,2125.1,11.14487602]
[1770551030763,9.53532553,2125.7,2125.2,23.69407727]
[1770551030971,11.25171496,2125.6,2125.2,23.69407727]
[1770551031170,11.25171496,2125.5,2125.2,21.96064725]
[1770551031466,11.25171496,2125.4,2125.2,21.96064725]
[1770551032171,16.06660169,2125.3,2125.2,21.96064725]
[1770551033171,11.25171496,2125.2,2124.7,11.14487602]
[1770551033375,11.25171496,2125.0,2124.5,11.14487602]
[1770551033672,16.06660169,2124.9,2124.5,11.14487602]
[1770551033874,16.06660169,2124.8,2124.6,21.96064725]
[1770551034075,4.81488673,2124.7,2124.6,21.96064725]
[1770551034469,16.06660169,2124.7,2124.6,21.96064725]
[1770551034670,16.06660169,2124.7,2124.3,11.14818111]
[1770551034870,16.06660169,2124.6,2124.4,21.96064725]
[1770551035073,16.06660169,2124.5,2124.4,21.96064725]
[1770551035264,16.06660169,2124.5,2124.3,0.00330509]
[1770551035465,4.81488673,2124.4,2124.3,21.96395234]
[1770551035875,16.87736036,2124.8,2124.3,11.14818111]
[1770551036077,16.87736036,2124.8,2124.5,11.14487602]
[1770551036373,11.25725342,2124.8,2124.5,11.14487602]
[1770551036565,11.25725342,2124.8,2124.4,17.14576052]
[1770551037474,11.25725342,2124.8,2123.4,11.14487602]
[1770551037675,11.25171496,2124.1,2123.2,11.14487602]
[1770551037865,11.25171496,2124.0,2123.2,11.14487602]
[1770551038478,11.25171496,2124.0,2123.2,11.14861192]
[1770551039579,11.25171496,2124.2,2123.2,11.14861192]
[1770551040073,11.25171496,2124.5,2123.2,11.14861192]
[1770551040279,11.25171496,2124.4,2123.2,11.14861192]
[1770551041980,11.25171496,2124.3,2123.2,0.0037359]
[1770551042175,11.25171496,2124.2,2123.2,0.0037359]
[1770551042374,11.25171496,2124.2,2123.2,11.14861192]
[1770551042677,11.25171496,2124.4,2123.2,11.14861192]
[1770551043066,11.25171496,2124.4,2122.5,11.14487602]
[1770551043272,11.05430195,2123.9,2122.5,11.14487602]
[1770551044074,11.05430195,2123.9,2122.5,11.15070472]
[1770551046297,11.05430195,2123.9,2122.7,11.49448533]
[1770551046784,11.05430195,2123.9,2121.7,11.49448533]
[1770551046987,11.40736558,2123.5,2121.7,11.49448533]
[1770551047284,11.26369248,2123.4,2121.7,12.04229225]
[1770551047783,11.26369248,2123.4,2121.7,12.04611153]
[1770551048483,11.26369248,2123.2,2121.7,12.04611153]
[1770551048684,11.26828831,2123.2,2121.7,12.04611153]
[1770551049280,0.00459583,2123.2,2121.7,12.04611153]
[1770551049590,11.2162934,2123.2,2121.9,11.49448533]
[1770551052287,11.19293668,2123.0,2121.9,11.49448533]
[1770551053084,11.19753251,2123.2,2121.9,11.49448533]
[1770551053889,0.00459583,2123.2,2122.1,11.01744658]
[1770551054090,10.77025278,2123.6,2122.5,11.01744658]
[1770551055088,10.77359021,2123.6,2122.5,11.01744658]
[1770551056888,0.00333743,2123.6,2122.5,11.01744658]
[1770551057290,10.77025278,2123.4,2122.0,11.01744658]
[1770551057896,30.46,2123.5,2122.3,11.01744658]
[1770551058092,10.77025278,2123.4,2122.3,11.01744658]
[1770551058696,0.00333743,2123.6,2122.7,11.25319658]
[1770551058697,10.77359021,2123.6,2122.7,11.25319658]
[1770551059092,10.77025278,2124.0,2122.9,11.01744658]
[1770551059293,10.77025278,2124.0,2122.9,11.25316658]
[1770551060094,0.00481371,2124.0,2123.2,11.01744658]
[1770551060291,0.00481371,2124.0,2123.2,11.02224068]
[1770551060497,10.77025278,2124.4,2123.2,11.25793068]
[1770551060696,10.77025278,2124.4,2123.4,11.01744658]
[1770551061099,0.23549,2125.1,2123.4,11.01744658]
[1770551061100,10.77025278,2125.0,2123.4,11.01744658]
[1770551061299,10.77025278,2124.8,2123.4,11.01744658]
[1770551061499,10.77541178,2124.8,2123.4,11.01744658]
[1770551062502,10.77025278,2124.6,2123.4,11.01744658]
[1770551063003,10.77025278,2124.6,2123.5,6.04340762]
[1770551063301,10.77025278,2124.6,2123.6,11.01744658]
[1770551064801,10.77025278,2124.4,2123.6,11.01744658]
[1770551065502,10.77025278,2124.7,2123.6,11.01744658]
[1770551065703,10.77025278,2124.5,2123.6,11.01744658]
[1770551069208,10.77025278,2124.3,2123.2,11.02224068]
[1770551069402,10.77025278,2124.1,2123.2,11.02224068]
[1770551071207,10.77025278,2123.9,2123.2,11.02224068]
[1770551073403,41.75670159,2124.5,2123.2,11.02224068]
[1770551073604,10.77025278,2124.4,2123.2,11.02224068]
[1770551073902,10.77025278,2124.2,2123.2,11.02224068]
[1770551074208,10.77025278,2124.0,2123.2,11.02224068]
[1770551075007,10.77025278,2124.4,2123.2,11.25793068]
[1770551075303,10.77025278,2124.2,2123.4,11.01744658]
[1770551077508,10.77025278,2124.2,2123.2,10.5733463]
[1770551077905,11.07299035,2124.0,2123.2,10.5733463]
[1770551078712,11.07299035,2124.0,2123.2,0.0047941]
[1770551079908,41.75670159,2124.4,2122.3,10.5685522]
[1770551079909,11.07299035,2123.8,2122.3,10.5685522]
[1770551080115,11.07299035,2123.6,2122.3,10.8043522]
[1770551080915,11.07299035,2123.6,2122.3,10.80870048]
[1770551081316,11.07299035,2123.4,2122.3,10.80870048]
[1770551083211,4.29239154,2123.3,2122.3,10.80870048]
[1770551083409,11.07299035,2123.2,2122.3,10.80870048]
[1770551087807,11.07299035,2123.2,2122.5,10.5685522]
[1770551088014,11.07299035,2123.8,2122.8,10.8042922]
[1770551088213,4.29072513,2123.7,2122.8,10.8042922]
[1770551088420,11.07299035,2123.8,2122.8,10.8042922]
[1770551088920,11.07724611,2123.8,2122.8,10.8042922]
[1770551094120,0.00425576,2123.8,2123.0,10.5685522]
[1770551094321,0.00425576,2123.8,2123.2,10.5685522]
[1770551094525,2.80474764,2124.3,2123.2,10.8042422]
[1770551094717,11.07299035,2124.2,2123.2,10.8042422]
[1770551094917,4.18119273,2124.1,2123.4,10.5685522]
[1770551095114,11.07299035,2124.2,2123.4,10.5685522]
[1770551095318,4.18126673,2124.1,2123.4,10.5685522]
[1770551095520,11.07299035,2124.2,2123.4,10.5685522]
[1770551095822,4.18533266,2124.1,2123.4,10.5685522]
[1770551096013,0.00401624,2124.1,2123.4,10.5685522]
[1770551097120,0.00401624,2124.1,2123.4,10.8042222]
[1770551097327,11.07299035,2124.3,2123.4,10.8042222]
[1770551098423,11.07750864,2124.3,2123.4,10.8042222]
[1770551099226,11.07750864,2124.3,2123.4,10.5685522]
[1770551099431,11.07299035,2124.1,2123.2,10.5685522]
[1770551099726,11.07750864,2124.3,2123.2,10.8042522]
[1770551099932,4.17502756,2124.2,2123.2,10.8042522]
[1770551100127,11.07299035,2124.2,2123.4,10.8042222]
[1770551100634,0.00451829,2124.3,2123.4,10.8042222]
[1770551100929,13.87773799,2125.0,2123.8,10.5685522]
[1770551101125,15.24654648,2124.9,2124.0,10.8041522]
[1770551101330,11.07299035,2124.9,2124.0,10.8041522]
[1770551101626,11.07299035,2125.1,2124.3,10.5685522]
[1770551101828,11.07299035,2125.4,2124.3,10.5685522]
[1770551102034,11.07905923,2125.1,2124.3,10.57321425]
[1770551102245,11.07299035,2124.9,2123.9,10.5685522]
[1770551102443,11.07299035,2124.6,2123.5,10.5685522]
[1770551102736,11.07299035,2124.4,2123.5,10.5685522]
[1770551103439,11.07299035,2124.4,2123.5,10.5722769]
[1770551104441,11.07299035,2124.6,2123.5,10.8079369]
[1770551104737,11.07299035,2124.6,2123.5,10.5722769]
[1770551104953,11.07299035,2124.9,2123.7,10.5685522]
[1770551105329,11.07299035,2124.9,2124.0,10.5685522]
[1770551105535,0.00606888,2125.1,2124.2,10.5685522]
[1770551105739,0.00606888,2125.1,2124.2,10.8041322]
[1770551107045,0.00606888,2125.1,2124.4,11.18624624]
[1770551107243,11.1500884,2125.5,2124.4,11.18624624]
[1770551108446,11.15435644,2125.5,2124.4,11.18624624]
[1770551110042,11.15435644,2125.5,2123.7,10.95068624]
[1770551110245,11.1500884,2124.7,2123.5,0.0037247]
[1770551110445,11.1500884,2124.2,2122.9,10.95068624]
[1770551110647,11.1500884,2124.0,2122.9,10.95068624]
[1770551111340,11.15452268,2124.0,2122.9,10.95434215]
[1770551111940,0.00443428,2124.0,2122.9,10.95434215]
[1770551112140,11.15452268,2124.0,2123.1,10.95068624]
[1770551112337,11.1500884,2124.6,2123.3,10.95068624]
[1770551112542,11.1500884,2124.6,2122.9,14.24665591]
[1770551112543,11.1500884,2124.6,2123.5,10.95068624]
[1770551113044,11.1500884,2125.1,2124.1,10.95068624]
[1770551113437,11.15575374,2125.1,2124.1,10.95068624]
[1770551114245,11.15575374,2125.1,2124.0,0.2356]
[1770551114551,10.54084405,2124.9,2123.9,11.07200685]
[1770551114944,10.54084405,2124.9,2123.5,11.07200685]
[1770551115149,10.54084405,2124.7,2123.5,11.07200685]
[1770551115341,10.54084405,2124.5,2123.0,11.07200685]
[1770551115744,10.54084405,2124.5,2123.1,11.07200685]
[1770551116152,10.54084405,2124.3,2123.1,11.07200685]
[1770551116345,4.12682344,2124.4,2123.1,11.07200685]
[1770551116346,10.54084405,2124.1,2123.1,11.07200685]
[1770551116751,10.54084405,2123.9,2122.9,0.00365591]
[1770551117138,10.54084405,2123.9,2122.9,11.07566276]
[1770551117544,10.54084405,2123.9,2122.9,0.00365591]